[Event "Live Chess"]
[Site "Chess.com"]
[Date "2023.05.20"]
[Round "-"]
[White "ProfPoisson"]
[Black "Jeffaroow"]
[Result "1-0"]
[WhiteElo "1138"]
[BlackElo "477"]
[TimeControl "300"]
[EndTime "14:05:33 PDT"]
[Termination "ProfPoisson won by resignation"]

1. e4 {[%clk 0:04:54.8]} 1... e5 {[%clk 0:04:57.8]} 2. Nf3 {[%clk 0:04:48.9]}
2... Nc6 {[%clk 0:04:56.6]} 3. d4 {[%clk 0:04:46.6]} 3... exd4 {[%clk
0:04:53.7]} 4. Bc4 {[%clk 0:04:46]} 4... Bc5 {[%clk 0:04:50.8]} 5. c3 {[%clk
0:04:43.1]} 5... Qf6 {[%clk 0:04:48.6]} 6. cxd4 {[%clk 0:04:38.5]} 6... Bxd4
{[%clk 0:04:44.8]} 7. O-O {[%clk 0:04:30.3]} 7... Be5 {[%clk 0:04:29.1]} 8. Bg5
{[%clk 0:04:13.8]} 8... Qd6 {[%clk 0:04:15.8]} 9. Nxe5 {[%clk 0:04:03.6]} 9...
Nxe5 {[%clk 0:04:11.5]} 10. Qxd6 {[%clk 0:03:56.1]} 10... cxd6 {[%clk
0:04:10.2]} 11. Bb3 {[%clk 0:03:54.2]} 11... Nc6 {[%clk 0:03:57]} 12. Nc3 {[%clk
0:03:52]} 12... Nd4 {[%clk 0:03:54.9]} 13. Nd5 {[%clk 0:03:43.8]} 13... Nb5
{[%clk 0:03:36.3]} 14. a4 {[%clk 0:03:39.5]} 14... f6 {[%clk 0:03:30.5]} 15.
axb5 {[%clk 0:03:35.6]} 1-0

[Event "Live Chess"]
[Site "Chess.com"]
[Date "2023.05.20"]
[Round "-"]
[White "LiamClery2020"]
[Black "mliszewski"]
[Result "1-0"]
[WhiteElo "2088"]
[BlackElo "1855"]
[TimeControl "300"]
[EndTime "14:05:43 PDT"]
[Termination "LiamClery2020 won by resignation"]

1. e4 {[%clk 0:04:59.1]} 1... c6 {[%clk 0:04:57.8]} 2. c4 {[%clk 0:04:57.7]}
2... d5 {[%clk 0:04:57.7]} 3. cxd5 {[%clk 0:04:57.6]} 3... cxd5 {[%clk
0:04:56.9]} 4. exd5 {[%clk 0:04:57.5]} 4... Nf6 {[%clk 0:04:56.2]} 5. Nc3 {[%clk
0:04:56.4]} 5... g6 {[%clk 0:04:55]} 6. Qf3 {[%clk 0:04:54.9]} 6... Bg7 {[%clk
0:04:53.4]} 7. d4 {[%clk 0:04:53.9]} 7... O-O {[%clk 0:04:52.8]} 8. Bc4 {[%clk
0:04:53.3]} 8... Nbd7 {[%clk 0:04:48.4]} 9. h3 {[%clk 0:04:52.2]} 9... Nb6
{[%clk 0:04:46.8]} 10. Bb3 {[%clk 0:04:51.3]} 10... a5 {[%clk 0:04:45.9]} 11. a4
{[%clk 0:04:46.5]} 11... Qd7 {[%clk 0:04:44]} 12. Nge2 {[%clk 0:04:38.7]} 12...
Rd8 {[%clk 0:04:43.4]} 13. Nf4 {[%clk 0:04:37.1]} 13... e6 {[%clk 0:04:02.7]}
14. dxe6 {[%clk 0:04:35.7]} 14... fxe6 {[%clk 0:04:01.5]} 15. Bxe6+ {[%clk
0:04:34.5]} 15... Qxe6+ {[%clk 0:04:00.8]} 16. Nxe6 {[%clk 0:04:34.3]} 16... Re8
{[%clk 0:04:00.4]} 17. d5 {[%clk 0:04:30.7]} 1-0

[Event "Live Chess"]
[Site "Chess.com"]
[Date "2023.05.20"]
[Round "-"]
[White "defenderalist"]
[Black "FMOlexandrProhorov"]
[Result "0-1"]
[WhiteElo "1622"]
[BlackElo "2172"]
[TimeControl "300"]
[EndTime "14:06:00 PDT"]
[Termination "FMOlexandrProhorov won by resignation"]

1. e4 {[%clk 0:04:56.7]} 1... c5 {[%clk 0:04:57.7]} 2. Nf3 {[%clk 0:04:55.9]}
2... e6 {[%clk 0:04:57.3]} 3. d4 {[%clk 0:04:55.5]} 3... cxd4 {[%clk 0:04:57.1]}
4. Nxd4 {[%clk 0:04:53.9]} 4... Qb6 {[%clk 0:04:57]} 5. Nc3 {[%clk 0:04:43]}
5... Bc5 {[%clk 0:04:55.4]} 6. Be3 {[%clk 0:04:41.3]} 6... Nf6 {[%clk
0:04:52.2]} 7. Be2 {[%clk 0:04:31.7]} 7... Nc6 {[%clk 0:04:49.7]} 8. Ndb5 {[%clk
0:04:05.2]} 8... Bxe3 {[%clk 0:04:47.3]} 9. fxe3 {[%clk 0:04:01]} 9... O-O
{[%clk 0:04:44.8]} 10. O-O {[%clk 0:03:53.9]} 10... Qxe3+ {[%clk 0:04:43]} 11.
Kh1 {[%clk 0:03:50.6]} 11... Nxe4 {[%clk 0:04:42.4]} 12. Nxe4 {[%clk 0:03:46.3]}
12... Qxe4 {[%clk 0:04:41.6]} 13. Bf3 {[%clk 0:03:40.3]} 13... Qb4 {[%clk
0:04:37.4]} 14. Nd6 {[%clk 0:03:32.1]} 14... Qxb2 {[%clk 0:04:36.4]} 15. Nxc8
{[%clk 0:03:28.5]} 15... Raxc8 {[%clk 0:04:34.9]} 16. Qxd7 {[%clk 0:03:23.8]}
16... Ne5 {[%clk 0:04:34.2]} 17. Qxb7 {[%clk 0:03:17]} 17... Qxc2 {[%clk
0:04:32.8]} 18. Qxa7 {[%clk 0:03:07.2]} 18... Nxf3 {[%clk 0:04:30.1]} 19. Rxf3
{[%clk 0:03:05.6]} 19... Qb2 {[%clk 0:04:27.9]} 20. Raf1 {[%clk 0:03:02.9]}
20... f5 {[%clk 0:04:23.7]} 21. h3 {[%clk 0:02:54.9]} 21... Rc2 {[%clk
0:04:21.1]} 22. Rg3 {[%clk 0:02:53.1]} 22... Qe5 {[%clk 0:04:18.9]} 23. Rgf3
{[%clk 0:02:29.5]} 23... h5 {[%clk 0:04:13.6]} 24. a4 {[%clk 0:02:25.3]} 24...
h4 {[%clk 0:04:12.9]} 25. R3f2 {[%clk 0:02:18.9]} 25... Rc3 {[%clk 0:04:06.9]}
26. a5 {[%clk 0:01:57.2]} 26... Qd5 {[%clk 0:04:05.4]} 27. Kh2 {[%clk
0:01:44.5]} 27... Rf7 {[%clk 0:04:03.5]} 28. Qb6 {[%clk 0:01:41.7]} 28... Rb3
{[%clk 0:04:00.3]} 29. Qb8+ {[%clk 0:01:23.3]} 29... Rxb8 {[%clk 0:03:58.6]} 0-1

[Event "Live Chess"]
[Site "Chess.com"]
[Date "2023.05.20"]
[Round "-"]
[White "AbilifyXL"]
[Black "wadsy27"]
[Result "0-1"]
[WhiteElo "1952"]
[BlackElo "2554"]
[TimeControl "300"]
[EndTime "14:06:04 PDT"]
[Termination "wadsy27 won by resignation"]

1. d4 {[%clk 0:04:57.9]} 1... d5 {[%clk 0:04:56.9]} 2. c4 {[%clk 0:04:56.8]}
2... c6 {[%clk 0:04:55.9]} 3. cxd5 {[%clk 0:04:55.8]} 3... cxd5 {[%clk
0:04:54.7]} 4. Nc3 {[%clk 0:04:55.7]} 4... Nf6 {[%clk 0:04:53.5]} 5. Nf3 {[%clk
0:04:55.6]} 5... Nc6 {[%clk 0:04:51.8]} 6. Bf4 {[%clk 0:04:54.7]} 6... a6 {[%clk
0:04:51]} 7. e3 {[%clk 0:04:53.9]} 7... Bg4 {[%clk 0:04:44.3]} 8. Be2 {[%clk
0:04:52.9]} 8... e6 {[%clk 0:04:42.9]} 9. h3 {[%clk 0:04:51.6]} 9... Bh5 {[%clk
0:04:40.3]} 10. O-O {[%clk 0:04:50.6]} 10... Be7 {[%clk 0:04:33]} 11. a3 {[%clk
0:04:48.3]} 11... O-O {[%clk 0:04:31]} 12. b4 {[%clk 0:04:46.4]} 12... Rc8
{[%clk 0:04:29.5]} 13. Na4 {[%clk 0:04:44.1]} 13... Nd7 {[%clk 0:04:17.3]} 14.
Rc1 {[%clk 0:04:40.2]} 14... Bg6 {[%clk 0:04:02.5]} 15. Bd3 {[%clk 0:04:33.9]}
15... Nb6 {[%clk 0:03:47.5]} 16. Nc5 {[%clk 0:04:29.4]} 16... Bxd3 {[%clk
0:03:37.2]} 17. Qxd3 {[%clk 0:04:26.9]} 17... Bxc5 {[%clk 0:03:36.3]} 18. bxc5
{[%clk 0:04:23]} 18... Nc4 {[%clk 0:03:35.2]} 19. Ng5 {[%clk 0:04:12.4]} 19...
g6 {[%clk 0:03:31.4]} 20. Nf3 {[%clk 0:04:09.7]} 20... b6 {[%clk 0:03:20.9]} 21.
Bg5 {[%clk 0:04:03]} 21... f6 {[%clk 0:03:17.8]} 22. Bh6 {[%clk 0:04:01.8]}
22... Rf7 {[%clk 0:03:16.3]} 23. cxb6 {[%clk 0:03:59.4]} 23... Qxb6 {[%clk
0:03:15.3]} 24. Rb1 {[%clk 0:03:57.2]} 24... Qa7 {[%clk 0:03:11.1]} 25. Bf4
{[%clk 0:03:55.6]} 25... Qd7 {[%clk 0:02:56.1]} 26. Nd2 {[%clk 0:03:43.8]} 26...
N6a5 {[%clk 0:02:47.3]} 27. Rfc1 {[%clk 0:03:34.9]} 27... Nxd2 {[%clk
0:02:43.6]} 28. Qxd2 {[%clk 0:03:33.3]} 28... Nc4 {[%clk 0:02:42.9]} 29. Qd3
{[%clk 0:03:29]} 29... Kg7 {[%clk 0:02:39.2]} 30. Rc3 {[%clk 0:03:12.1]} 30...
g5 {[%clk 0:02:17.1]} 31. Bg3 {[%clk 0:03:07.4]} 31... h5 {[%clk 0:02:07]} 32.
h4 {[%clk 0:03:03.7]} 32... g4 {[%clk 0:02:01.8]} 33. Rcb3 {[%clk 0:03:01.1]}
33... Qc6 {[%clk 0:01:57.9]} 34. Kh2 {[%clk 0:02:45.5]} 34... Rd8 {[%clk
0:01:56.5]} 35. Qe2 {[%clk 0:02:33.3]} 35... Rdd7 {[%clk 0:01:51.8]} 36. f3
{[%clk 0:02:31.9]} 36... gxf3 {[%clk 0:01:48.9]} 37. Qxf3 {[%clk 0:02:30.7]}
37... Nd2 {[%clk 0:01:47]} 38. Qxh5 {[%clk 0:02:25.4]} 38... Nxb3 {[%clk
0:01:45.1]} 39. Rxb3 {[%clk 0:02:25.3]} 39... Rb7 {[%clk 0:01:43.3]} 40. Rxb7
{[%clk 0:02:18.6]} 40... Rxb7 {[%clk 0:01:42.2]} 41. Bf4 {[%clk 0:02:16.5]}
41... Kf8 {[%clk 0:01:33.4]} 42. Qh8+ {[%clk 0:02:12.7]} 42... Ke7 {[%clk
0:01:30.7]} 43. Qg7+ {[%clk 0:02:11.7]} 43... Ke8 {[%clk 0:01:24.1]} 44. Qxf6
{[%clk 0:02:06.7]} 44... Rf7 {[%clk 0:01:23.1]} 45. Qg6 {[%clk 0:02:02.7]} 45...
Qd7 {[%clk 0:01:14.7]} 46. h5 {[%clk 0:02:00.1]} 46... Qe7 {[%clk 0:01:10.1]}
47. Kh3 {[%clk 0:01:54.7]} 47... Kd7 {[%clk 0:01:05.8]} 48. h6 {[%clk
0:01:50.8]} 48... Rf6 {[%clk 0:01:02.1]} 49. Qg8 {[%clk 0:01:41.7]} 49... Rf8
{[%clk 0:00:47.9]} 50. h7 {[%clk 0:01:33.3]} 50... Qf6 {[%clk 0:00:34.9]} 51.
Qg4 {[%clk 0:01:10.7]} 51... Rh8 {[%clk 0:00:31.1]} 52. Qh5 {[%clk 0:01:07.6]}
52... Qf5+ {[%clk 0:00:29.2]} 53. g4 {[%clk 0:00:59.8]} 53... Rxh7 {[%clk
0:00:25]} 54. gxf5 {[%clk 0:00:56.9]} 54... Rxh5+ {[%clk 0:00:24.3]} 55. Kg4
{[%clk 0:00:54.9]} 55... Rxf5 {[%clk 0:00:24.2]} 56. Kf3 {[%clk 0:00:50.7]}
56... Kc6 {[%clk 0:00:23.4]} 57. Kf2 {[%clk 0:00:49.1]} 57... Kb5 {[%clk
0:00:22.2]} 58. Ke2 {[%clk 0:00:48.3]} 58... Rxf4 {[%clk 0:00:20.6]} 59. exf4
{[%clk 0:00:47.2]} 59... Ka4 {[%clk 0:00:20.5]} 60. Ke3 {[%clk 0:00:43.7]} 60...
Kxa3 {[%clk 0:00:19.7]} 61. f5 {[%clk 0:00:43.3]} 61... exf5 {[%clk 0:00:19]}
62. Kf4 {[%clk 0:00:43.2]} 62... Kb4 {[%clk 0:00:18.4]} 63. Ke5 {[%clk
0:00:42.7]} 63... Kc4 {[%clk 0:00:17.9]} 64. Kxf5 {[%clk 0:00:41.8]} 64... a5
{[%clk 0:00:17.5]} 0-1

[Event "Live Chess"]
[Site "Chess.com"]
[Date "2023.05.20"]
[Round "-"]
[White "MaximKris"]
[Black "Conradical12"]
[Result "0-1"]
[WhiteElo "1842"]
[BlackElo "1582"]
[TimeControl "300"]
[EndTime "14:06:17 PDT"]
[Termination "Conradical12 won by checkmate"]

1. e4 {[%clk 0:04:54.4]} 1... e5 {[%clk 0:04:58.7]} 2. Nf3 {[%clk 0:04:53.5]}
2... Nc6 {[%clk 0:04:58]} 3. Bb5 {[%clk 0:04:52.3]} 3... Nf6 {[%clk 0:04:57.3]}
4. O-O {[%clk 0:04:50.1]} 4... d6 {[%clk 0:04:55.2]} 5. Re1 {[%clk 0:04:48.7]}
5... Bg4 {[%clk 0:04:53.7]} 6. Nc3 {[%clk 0:04:47.8]} 6... Be7 {[%clk 0:04:49]}
7. h3 {[%clk 0:04:46.2]} 7... Bh5 {[%clk 0:04:46.8]} 8. d3 {[%clk 0:04:44.7]}
8... O-O {[%clk 0:04:44.6]} 9. Be3 {[%clk 0:04:39.1]} 9... a6 {[%clk 0:04:40.4]}
10. Bxc6 {[%clk 0:04:36.4]} 10... bxc6 {[%clk 0:04:38.9]} 11. d4 {[%clk
0:04:33.5]} 11... Nd7 {[%clk 0:04:32.6]} 12. d5 {[%clk 0:04:30.7]} 12... c5
{[%clk 0:04:30.3]} 13. g4 {[%clk 0:04:25.9]} 13... Bg6 {[%clk 0:04:27.1]} 14.
Nh2 {[%clk 0:04:23.5]} 14... Nb6 {[%clk 0:04:24.1]} 15. f4 {[%clk 0:04:22.5]}
15... exf4 {[%clk 0:04:22.1]} 16. Bxf4 {[%clk 0:04:22.4]} 16... Bh4 {[%clk
0:04:17.9]} 17. Rf1 {[%clk 0:04:19.8]} 17... Nc4 {[%clk 0:04:15.5]} 18. Rb1
{[%clk 0:04:17.3]} 18... Qf6 {[%clk 0:03:58.9]} 19. Qf3 {[%clk 0:03:07.4]} 19...
Qd4+ {[%clk 0:03:31.7]} 20. Kh1 {[%clk 0:02:53.6]} 20... Nd2 {[%clk 0:03:06.3]}
21. Bxd2 {[%clk 0:02:46.4]} 21... Qxd2 {[%clk 0:03:03.4]} 22. Rbd1 {[%clk
0:02:45.2]} 22... Qh6 {[%clk 0:03:00.7]} 23. Qf4 {[%clk 0:01:16.9]} 23... Rae8
{[%clk 0:02:47.7]} 24. Qxh6 {[%clk 0:01:10.6]} 24... gxh6 {[%clk 0:02:44.5]} 25.
Nf3 {[%clk 0:01:03]} 25... Bd8 {[%clk 0:02:32.9]} 26. h4 {[%clk 0:00:53.6]}
26... Bxe4 {[%clk 0:02:24.1]} 27. Nxe4 {[%clk 0:00:50.8]} 27... Rxe4 {[%clk
0:02:21.3]} 28. g5 {[%clk 0:00:50.2]} 28... hxg5 {[%clk 0:02:16.7]} 29. hxg5
{[%clk 0:00:49.2]} 29... f6 {[%clk 0:02:04.2]} 30. gxf6 {[%clk 0:00:39.2]} 30...
Rxf6 {[%clk 0:02:00.6]} 31. Rg1+ {[%clk 0:00:39.1]} 31... Kh8 {[%clk 0:01:58.1]}
32. Ng5 {[%clk 0:00:35.6]} 32... Rh4+ {[%clk 0:01:48.6]} 33. Kg2 {[%clk
0:00:34.3]} 33... Rg6 {[%clk 0:01:46.2]} 34. Kf3 {[%clk 0:00:32.5]} 34... Bxg5
{[%clk 0:01:16.7]} 35. Rh1 {[%clk 0:00:25.8]} 35... Rxh1 {[%clk 0:01:14.1]} 36.
Rxh1 {[%clk 0:00:25.7]} 36... Kg7 {[%clk 0:01:09.5]} 37. Kg4 {[%clk 0:00:25.6]}
37... Bf6+ {[%clk 0:01:07.4]} 38. Kf5 {[%clk 0:00:25.5]} 38... Bxb2 {[%clk
0:01:05.1]} 39. Rb1 {[%clk 0:00:22.7]} 39... Rf6+ {[%clk 0:00:59.3]} 40. Ke4
{[%clk 0:00:19.8]} 40... Be5 {[%clk 0:00:54.9]} 41. Rg1+ {[%clk 0:00:17.5]}
41... Kf7 {[%clk 0:00:52.6]} 42. Rh1 {[%clk 0:00:17.4]} 42... Kg7 {[%clk
0:00:48.8]} 43. Rb1 {[%clk 0:00:17.3]} 43... Rf4+ {[%clk 0:00:47.3]} 44. Ke3
{[%clk 0:00:15.6]} 44... Rd4 {[%clk 0:00:44.6]} 45. Kf3 {[%clk 0:00:15.5]} 45...
Rf4+ {[%clk 0:00:43.1]} 46. Ke3 {[%clk 0:00:14.2]} 46... Rc4 {[%clk 0:00:39.9]}
47. Rb7 {[%clk 0:00:12.7]} 47... Rxc2 {[%clk 0:00:38.3]} 48. Rxc7+ {[%clk
0:00:12]} 48... Kf6 {[%clk 0:00:37.7]} 49. Rc6 {[%clk 0:00:11.9]} 49... Rxa2
{[%clk 0:00:35.3]} 50. Rc8 {[%clk 0:00:11.2]} 50... Ra4 {[%clk 0:00:34.8]} 51.
Rc7 {[%clk 0:00:10.3]} 51... Rd4 {[%clk 0:00:34.1]} 52. Rxh7 {[%clk 0:00:09]}
52... a5 {[%clk 0:00:32]} 53. Rh1 {[%clk 0:00:08.5]} 53... a4 {[%clk 0:00:30.8]}
54. Ra1 {[%clk 0:00:07.5]} 54... Rd3+ {[%clk 0:00:26.4]} 55. Kxd3 {[%clk
0:00:06.2]} 55... Bxa1 {[%clk 0:00:24.6]} 56. Kc2 {[%clk 0:00:05.8]} 56... Ke5
{[%clk 0:00:21]} 57. Kb1 {[%clk 0:00:05.7]} 57... Bd4 {[%clk 0:00:19.7]} 58. Ka2
{[%clk 0:00:05.6]} 58... Kxd5 {[%clk 0:00:19.2]} 59. Ka3 {[%clk 0:00:05.5]}
59... c4 {[%clk 0:00:18.6]} 60. Kxa4 {[%clk 0:00:05.4]} 60... c3 {[%clk
0:00:18.2]} 61. Kb3 {[%clk 0:00:05.2]} 61... Ke4 {[%clk 0:00:16.6]} 62. Kc2
{[%clk 0:00:05.1]} 62... Ke3 {[%clk 0:00:16.1]} 63. Kc1 {[%clk 0:00:05]} 63...
Kd3 {[%clk 0:00:15]} 64. Kd1 {[%clk 0:00:04.9]} 64... c2+ {[%clk 0:00:14]} 65.
Kc1 {[%clk 0:00:04.8]} 65... Be3+ {[%clk 0:00:13.4]} 66. Kb2 {[%clk 0:00:03.7]}
66... Kd2 {[%clk 0:00:12.7]} 67. Kb3 {[%clk 0:00:03.6]} 67... c1=Q {[%clk
0:00:11.8]} 68. Kb4 {[%clk 0:00:03.5]} 68... Qc3+ {[%clk 0:00:10.6]} 69. Kb5
{[%clk 0:00:03.4]} 69... Qc5+ {[%clk 0:00:08.4]} 70. Ka6 {[%clk 0:00:02.6]}
70... Qb6# {[%clk 0:00:07.3]} 0-1

[Event "Live Chess"]
[Site "Chess.com"]
[Date "2023.05.20"]
[Round "-"]
[White "lucaskk818"]
[Black "NatashaRegan"]
[Result "1-0"]
[WhiteElo "1901"]
[BlackElo "1766"]
[TimeControl "300"]
[EndTime "14:06:29 PDT"]
[Termination "lucaskk818 won by resignation"]

1. d4 {[%clk 0:04:58.4]} 1... f5 {[%clk 0:04:58.5]} 2. e4 {[%clk 0:04:56.4]}
2... Nf6 {[%clk 0:04:58]} 3. exf5 {[%clk 0:04:54.5]} 3... d5 {[%clk 0:04:54.7]}
4. Bd3 {[%clk 0:04:52.1]} 4... Nc6 {[%clk 0:04:50.7]} 5. Nf3 {[%clk 0:04:50.5]}
5... Ne4 {[%clk 0:04:44.5]} 6. c3 {[%clk 0:04:28.7]} 6... Bxf5 {[%clk
0:04:41.6]} 7. Ng5 {[%clk 0:04:26.6]} 7... Qd7 {[%clk 0:04:33.1]} 8. O-O {[%clk
0:04:17.5]} 8... O-O-O {[%clk 0:04:21.8]} 9. Re1 {[%clk 0:04:05.9]} 9... Nxg5
{[%clk 0:04:18.6]} 10. Bxg5 {[%clk 0:04:05.8]} 10... h6 {[%clk 0:04:11.4]} 11.
Bf4 {[%clk 0:03:49.7]} 11... g5 {[%clk 0:04:04.8]} 12. Be5 {[%clk 0:03:49]}
12... Rg8 {[%clk 0:04:01.6]} 13. b4 {[%clk 0:03:35.2]} 13... Nxe5 {[%clk
0:03:51.5]} 14. Rxe5 {[%clk 0:03:33.2]} 14... Bg4 {[%clk 0:03:45]} 15. f3 {[%clk
0:03:27.3]} 15... Bh5 {[%clk 0:03:33.6]} 16. a4 {[%clk 0:03:14]} 16... Bg7
{[%clk 0:03:29.2]} 17. Bf5 {[%clk 0:03:07.3]} 17... Bxe5 {[%clk 0:03:18]} 18.
Bxd7+ {[%clk 0:03:05.5]} 18... Rxd7 {[%clk 0:03:16.9]} 19. dxe5 {[%clk
0:03:05.1]} 19... g4 {[%clk 0:03:13]} 20. fxg4 {[%clk 0:03:00.5]} 20... Bxg4
{[%clk 0:03:11.2]} 21. Qd3 {[%clk 0:02:56.9]} 21... e6 {[%clk 0:03:02.8]} 22.
Na3 {[%clk 0:02:54.7]} 22... Bf5 {[%clk 0:03:00.8]} 23. Qe3 {[%clk 0:02:49.9]}
23... h5 {[%clk 0:02:53.6]} 24. Nb5 {[%clk 0:02:47.6]} 24... Rdg7 {[%clk
0:02:48.1]} 25. g3 {[%clk 0:02:32.3]} 25... a6 {[%clk 0:02:45.2]} 26. Nd4 {[%clk
0:02:29.4]} 26... Be4 {[%clk 0:02:42.8]} 27. Nxe6 {[%clk 0:02:23.3]} 27... Rg6
{[%clk 0:02:39.9]} 28. Nf4 {[%clk 0:02:20.3]} 28... Rg5 {[%clk 0:02:32.1]} 29.
e6 {[%clk 0:02:11.4]} 29... h4 {[%clk 0:02:28.5]} 30. Kf2 {[%clk 0:01:59]} 30...
hxg3+ {[%clk 0:02:22.6]} 31. hxg3 {[%clk 0:01:58.9]} 31... Rh8 {[%clk
0:02:18.7]} 32. Rg1 {[%clk 0:01:49.5]} 32... Rh2+ {[%clk 0:02:15.7]} 33. Ng2
{[%clk 0:01:47.3]} 33... Rf5+ {[%clk 0:02:11.7]} 34. Ke1 {[%clk 0:01:42.1]}
34... Bxg2 {[%clk 0:02:09.2]} 35. e7 {[%clk 0:01:36.7]} 1-0

[Event "Live Chess"]
[Site "Chess.com"]
[Date "2023.05.20"]
[Round "-"]
[White "chessfiction"]
[Black "MarkLim1"]
[Result "1-0"]
[WhiteElo "2376"]
[BlackElo "1655"]
[TimeControl "300"]
[EndTime "14:06:29 PDT"]
[Termination "chessfiction won by resignation"]

1. e4 {[%clk 0:04:57.9]} 1... e6 {[%clk 0:04:59]} 2. d4 {[%clk 0:04:57.1]} 2...
d5 {[%clk 0:04:58.5]} 3. Nc3 {[%clk 0:04:57]} 3... Nf6 {[%clk 0:04:57.5]} 4. e5
{[%clk 0:04:55.8]} 4... Nfd7 {[%clk 0:04:56.6]} 5. f4 {[%clk 0:04:55.1]} 5... c5
{[%clk 0:04:56.1]} 6. Nf3 {[%clk 0:04:53.6]} 6... Nc6 {[%clk 0:04:55.4]} 7. Ne2
{[%clk 0:04:52.7]} 7... b5 {[%clk 0:04:54.4]} 8. h4 {[%clk 0:04:51.2]} 8... b4
{[%clk 0:04:52.3]} 9. h5 {[%clk 0:04:50.6]} 9... Ba6 {[%clk 0:04:51.6]} 10. g4
{[%clk 0:04:49.2]} 10... Bxe2 {[%clk 0:04:48.3]} 11. Qxe2 {[%clk 0:04:47.6]}
11... Qb6 {[%clk 0:04:47.2]} 12. Bh3 {[%clk 0:04:42.4]} 12... cxd4 {[%clk
0:04:43.1]} 13. f5 {[%clk 0:04:40.3]} 13... O-O-O {[%clk 0:04:18.2]} 14. Ng5
{[%clk 0:04:36.9]} 14... Ndxe5 {[%clk 0:04:08.1]} 15. Bf4 {[%clk 0:04:33.9]}
15... h6 {[%clk 0:03:56.1]} 16. Bxe5 {[%clk 0:04:20.7]} 16... hxg5 {[%clk
0:03:49.4]} 17. fxe6 {[%clk 0:04:14.2]} 17... fxe6 {[%clk 0:03:48.3]} 18. O-O-O
{[%clk 0:04:09]} 18... Bc5 {[%clk 0:03:46]} 19. Bxg7 {[%clk 0:04:06.1]} 19...
Rhe8 {[%clk 0:03:42.6]} 20. h6 {[%clk 0:04:04.3]} 20... d3 {[%clk 0:03:30.1]}
21. Rxd3 {[%clk 0:04:01.8]} 21... e5 {[%clk 0:03:27.2]} 22. h7 {[%clk 0:03:59]}
22... e4 {[%clk 0:03:26.4]} 23. Rdd1 {[%clk 0:03:52.2]} 23... Bd4 {[%clk
0:03:09.3]} 24. h8=Q {[%clk 0:03:40]} 24... Rxh8 {[%clk 0:03:06.9]} 25. Bxh8
{[%clk 0:03:39.9]} 25... Bxh8 {[%clk 0:03:00.9]} 26. Bf1 {[%clk 0:03:33.9]}
26... Nd4 {[%clk 0:02:53.7]} 27. Qa6+ {[%clk 0:03:28.8]} 27... Kc7 {[%clk
0:02:47.6]} 28. Rh7+ {[%clk 0:03:26.5]} 28... Kc6 {[%clk 0:02:45.9]} 29. Rh6+
{[%clk 0:03:19.1]} 29... Rd6 {[%clk 0:02:45]} 30. Rxh8 {[%clk 0:03:17.9]} 1-0